fUSD/lending_fUSD_20260404
["ID","MTS","AMOUNT","RATE_DAILY","PERIOD"]
[419722023,1775335838486,-1000.0,0.00013521,2]
[419722025,1775335838494,-1000.0,0.00013521,2]
[419722027,1775335838504,-1000.0,0.00013521,2]
[419722029,1775335838513,-249.0,0.00013545,2]
[419722031,1775335838522,-1000.0,0.00013621,2]
[419722033,1775335838531,-1000.0,0.00013621,2]
[419722035,1775335838541,-18992.18007814,0.00013627,2]
[419722037,1775335838550,-23220.59307934,0.00013627,2]
[419722039,1775335838559,-295.72,0.00013697,2]
[419722041,1775335838568,-500.0,0.00013698,2]
[419722043,1775335838577,-507.27121127,0.00013698,2]
[419722045,1775335838586,-500.0,0.00013698,2]
[419722047,1775335838595,-500.0,0.00013698,2]
[419722049,1775335838604,-500.0,0.00013698,2]
[419722051,1775335838614,-500.0,0.00013698,2]
[419722053,1775335838623,-500.0,0.00013698,2]
[419722055,1775335838632,-500.0,0.00013698,2]
[419722057,1775335838641,-500.0,0.00013698,2]
[419722059,1775335838650,-500.0,0.00013698,2]
[419722061,1775335838659,-500.0,0.00013698,2]
[419722063,1775335838669,-500.0,0.00013698,2]
[419722065,1775335838678,-372.04738968,0.00013698,2]
[419722067,1775335838686,-500.0,0.00013698,2]
[419722069,1775335838695,-500.0,0.00013698,2]
[419722071,1775335838704,-500.0,0.00013698,2]
[419722073,1775335838713,-500.0,0.00013698,2]
[419722075,1775335838722,-398.43669082,0.00013698,2]
[419722076,1775335838731,-523.47,0.00013698,2]
[419722079,1775335838741,-722.32,0.00013698,2]
[419722080,1775335838750,-722.32,0.00013698,2]
[419722082,1775335838760,-722.32,0.00013698,2]
[419722084,1775335838769,-722.32,0.00013698,2]
[419722086,1775335838778,-722.32,0.00013698,2]
[419722088,1775335838787,-722.32,0.00013698,2]
[419722090,1775335838797,-722.32,0.00013698,2]
[419722094,1775335838817,-722.32,0.00013698,2]
[419722096,1775335838826,-722.32,0.00013698,2]
[419722098,1775335838835,-722.32,0.00013698,2]
[419722100,1775335838844,-722.32,0.00013698,2]
[419722102,1775335838854,-722.32,0.00013698,2]
[419722103,1775335838864,-722.32,0.00013698,2]
[419722104,1775335838874,-722.32,0.00013698,2]
[419722105,1775335838884,-722.32,0.00013698,2]
[419722106,1775335838893,-722.32,0.00013698,2]
[419722107,1775335838903,-722.32,0.00013698,2]
[419722108,1775335838913,-500.0,0.00013698,2]
[419722109,1775335838923,-500.0,0.00013698,2]
[419722110,1775335838932,-500.0,0.00013698,2]
[419722111,1775335838942,-500.0,0.00013698,2]
[419722112,1775335838952,-500.0,0.00013698,2]
[419722113,1775335838962,-500.0,0.00013698,2]
[419722114,1775335838972,-500.0,0.00013698,2]
[419722116,1775335838981,-500.0,0.00013698,2]
[419722117,1775335838990,-500.0,0.00013698,2]
[419722119,1775335838999,-500.0,0.00013698,2]
[419722121,1775335839009,-500.0,0.00013698,2]
[419722123,1775335839019,-500.0,0.00013698,2]
[419722125,1775335839028,-500.0,0.00013698,2]
[419722127,1775335839037,-268.57302384,0.00013698,2]
[419722129,1775335839046,-500.0,0.00013698,2]
[419722131,1775335839056,-500.0,0.00013698,2]
[419722133,1775335839065,-500.0,0.00013698,2]
[419722135,1775335839074,-500.0,0.00013698,2]
[419722137,1775335839083,-500.0,0.00013698,2]
[419722139,1775335839092,-500.0,0.00013698,2]
[419722141,1775335839101,-500.0,0.00013698,2]
[419722143,1775335839110,-500.0,0.00013698,2]
[419722145,1775335839120,-500.0,0.00013698,2]
[419722147,1775335839129,-500.0,0.00013698,2]
[419722149,1775335839138,-500.0,0.00013698,2]
[419722151,1775335839148,-500.0,0.00013698,2]
[419722153,1775335839157,-500.0,0.00013698,2]
[419722155,1775335839166,-500.0,0.00013698,2]
[419722157,1775335839175,-500.0,0.00013698,2]
[419722159,1775335839185,-500.0,0.00013698,2]
[419722161,1775335839195,-500.0,0.00013698,2]
[419722163,1775335839204,-500.0,0.00013698,2]
[419722165,1775335839213,-500.0,0.00013698,2]
[419722167,1775335839222,-500.0,0.00013698,2]
[419722169,1775335839231,-500.0,0.00013698,2]
[419722170,1775335839245,-500.0,0.00013698,2]
[419722172,1775335839254,-449.17994436,0.00013698,2]
[419722174,1775335839264,-500.0,0.00013698,2]
[419722176,1775335839274,-500.0,0.00013698,2]
[419722179,1775335839283,-500.0,0.00013698,2]
[419722181,1775335839293,-500.0,0.00013698,2]
[419722184,1775335839315,-561.59815036,0.00013698,2]
[419722185,1775335839332,-500.0,0.00013698,2]
[419722186,1775335839348,-500.0,0.00013698,2]
[419722187,1775335839363,-500.0,0.00013698,2]
[419722188,1775335839377,-500.0,0.00013698,2]
[419722189,1775335839392,-500.0,0.00013698,2]
[419722190,1775335839406,-500.0,0.00013698,2]
[419722191,1775335839420,-500.0,0.00013698,2]
[419722192,1775335839436,-500.0,0.00013698,2]
[419722193,1775335839453,-500.0,0.00013698,2]
[419722194,1775335839469,-500.0,0.00013698,2]
[419722195,1775335839484,-500.0,0.00013698,2]
[419722196,1775335839497,-500.0,0.00013698,2]
[419722197,1775335839511,-500.0,0.00013698,2]
[419722198,1775335839524,-500.0,0.00013698,2]
[419722199,1775335839534,-433.75,0.00013698,2]
[419722200,1775335839549,-500.0,0.00013698,2]
[419722201,1775335839562,-500.0,0.00013698,2]
[419722202,1775335839576,-500.0,0.00013698,2]
[419722203,1775335839591,-500.0,0.00013698,2]
[419722204,1775335839604,-500.0,0.00013698,2]
[419722205,1775335839618,-500.0,0.00013698,2]
[419722206,1775335839634,-500.0,0.00013698,2]
[419722207,1775335839646,-500.0,0.00013698,2]
[419722208,1775335839656,-500.0,0.00013698,2]
[419722209,1775335839667,-500.0,0.00013698,2]
[419722210,1775335839681,-500.0,0.00013698,2]
[419722211,1775335839693,-500.0,0.00013698,2]
[419722212,1775335839704,-500.0,0.00013698,2]
[419722213,1775335839717,-500.0,0.00013698,2]
[419722214,1775335839732,-500.0,0.00013698,2]
[419722215,1775335839745,-500.0,0.00013698,2]
[419722216,1775335839773,-500.0,0.00013698,2]
[419722217,1775335839789,-500.0,0.00013698,2]
[419722218,1775335839800,-500.0,0.00013698,2]
[419722219,1775335839811,-500.0,0.00013698,2]
[419722220,1775335839823,-500.0,0.00013698,2]
[419722221,1775335839835,-500.0,0.00013698,2]
[419722222,1775335839848,-500.0,0.00013698,2]
[419722223,1775335839860,-500.0,0.00013698,2]
[419722224,1775335839891,-529.28576111,0.00013698,2]
[419722225,1775335839904,-500.0,0.00013698,2]
[419722226,1775335839917,-500.0,0.00013698,2]
[419722227,1775335839930,-500.0,0.00013698,2]
[419722228,1775335839943,-500.0,0.00013698,2]
[419722229,1775335839957,-500.0,0.00013698,2]
[419722230,1775335839971,-500.0,0.00013698,2]
[419722231,1775335839984,-500.0,0.00013698,2]
[419722232,1775335839998,-500.0,0.00013698,2]
[419722233,1775335840011,-500.0,0.00013698,2]
[419722234,1775335840025,-500.0,0.00013698,2]
[419722235,1775335840037,-500.0,0.00013698,2]
[419722236,1775335840056,-500.0,0.00013698,2]
[419722237,1775335840069,-431.42104867,0.00013698,2]
[419722238,1775335840082,-500.0,0.00013698,2]
[419722239,1775335840094,-500.0,0.00013698,2]
[419722240,1775335840107,-500.0,0.00013698,2]
[419722241,1775335840119,-500.0,0.00013698,2]
[419722242,1775335840133,-500.0,0.00013698,2]
[419722243,1775335840145,-500.0,0.00013698,2]
[419722244,1775335840158,-500.0,0.00013698,2]
[419722245,1775335840171,-500.0,0.00013698,2]
[419722246,1775335840184,-500.0,0.00013698,2]
[419722247,1775335840203,-500.0,0.00013698,2]
[419722248,1775335840217,-500.0,0.00013698,2]
[419722249,1775335840231,-500.0,0.00013698,2]
[419722250,1775335840244,-500.0,0.00013698,2]
[419722251,1775335840258,-500.0,0.00013698,2]
[419722252,1775335840272,-500.0,0.00013698,2]
[419722253,1775335840284,-500.0,0.00013698,2]
[419722254,1775335840296,-500.0,0.00013698,2]
[419722255,1775335840308,-500.0,0.00013698,2]
[419722256,1775335840321,-500.0,0.00013698,2]
[419722257,1775335840333,-500.0,0.00013698,2]
[419722258,1775335840345,-500.0,0.00013698,2]
[419722259,1775335840357,-500.0,0.00013698,2]
[419722260,1775335840369,-196.18640061,0.00013698,2]
[419722261,1775335840380,-500.0,0.00013698,2]
[419722262,1775335840393,-500.0,0.00013698,2]
[419722263,1775335840404,-500.0,0.00013698,2]
[419722264,1775335840416,-500.0,0.00013698,2]
[419722265,1775335840428,-500.0,0.00013698,2]
[419722266,1775335840440,-500.0,0.00013698,2]
[419722267,1775335840452,-500.0,0.00013698,2]
[419722268,1775335840464,-500.0,0.00013698,2]
[419722269,1775335840477,-500.0,0.00013698,2]
[419722270,1775335840488,-500.0,0.00013698,2]
[419722271,1775335840500,-500.0,0.00013698,2]
[419722272,1775335840512,-500.0,0.00013698,2]
[419722273,1775335840524,-500.0,0.00013698,2]
[419722274,1775335840536,-500.0,0.00013698,2]
[419722275,1775335840549,-520.83,0.00013698,2]
[419722276,1775335840563,-520.83,0.00013698,2]
[419722277,1775335840575,-520.83,0.00013698,2]
[419722278,1775335840587,-520.83,0.00013698,2]
[419722279,1775335840600,-520.83,0.00013698,2]
[419722280,1775335840613,-520.83,0.00013698,2]
[419722281,1775335840625,-520.83,0.00013698,2]
[419722282,1775335840637,-520.83,0.00013698,2]
[419722283,1775335840649,-520.83,0.00013698,2]
[419722284,1775335840660,-520.83,0.00013698,2]
[419722285,1775335840673,-520.83,0.00013698,2]
[419722286,1775335840684,-520.83,0.00013698,2]
[419722287,1775335840697,-520.83,0.00013698,2]
[419722288,1775335840709,-520.83,0.00013698,2]
[419722289,1775335840721,-520.83,0.00013698,2]
[419722290,1775335840735,-520.83,0.00013698,2]
[419722291,1775335840747,-520.83,0.00013698,2]
[419722292,1775335840760,-500.0,0.00013698,2]
[419722293,1775335840774,-500.0,0.00013698,2]
[419722294,1775335840786,-500.0,0.00013698,2]
[419722295,1775335840799,-500.0,0.00013698,2]
[419722296,1775335840811,-500.0,0.00013698,2]
[419722297,1775335840824,-500.0,0.00013698,2]
[419722298,1775335840836,-475.31700749,0.00013698,2]
[419722299,1775335840849,-150.0,0.00013699,2]
[419722300,1775335840861,-150.0,0.00013699,2]
[419722301,1775335840874,-4900.24,0.00013699,2]
[419722302,1775335840887,-500.0,0.00013699,2]
[419722303,1775335840900,-500.0,0.00013699,2]
[419722304,1775335840911,-500.0,0.00013699,2]
[419722305,1775335840924,-500.0,0.00013699,2]
[419722306,1775335840936,-500.0,0.00013699,2]
[419722307,1775335840948,-500.0,0.00013699,2]
[419722308,1775335840960,-500.0,0.00013699,2]
[419722309,1775335840972,-500.0,0.00013699,2]
[419722310,1775335840985,-500.0,0.00013699,2]
[419722311,1775335840996,-500.0,0.00013699,2]
[419722312,1775335841008,-500.0,0.00013699,2]
[419722313,1775335841020,-609.23348249,0.00013699,2]
[419722314,1775335841032,-500.0,0.00013699,2]
[419722315,1775335841044,-500.0,0.00013699,2]
[419722316,1775335841056,-500.0,0.00013699,2]
[419722317,1775335841070,-500.0,0.00013699,2]
[419722318,1775335841082,-500.0,0.00013699,2]
[419722319,1775335841094,-500.0,0.00013699,2]
[419722320,1775335841107,-500.0,0.00013699,2]
[419722321,1775335841119,-500.0,0.00013699,2]
[419722322,1775335841131,-307.35572359,0.00013699,2]
[419722323,1775335841143,-500.0,0.00013699,2]
[419722324,1775335841155,-500.0,0.00013699,2]
[419722325,1775335841166,-500.0,0.00013699,2]
[419722326,1775335841179,-500.0,0.00013699,2]
[419722327,1775335841191,-500.0,0.00013699,2]
[419722328,1775335841203,-165.64274187,0.00013699,2]
[419722329,1775335841215,-500.0,0.00013699,2]
[419722330,1775335841227,-500.0,0.00013699,2]
[419722331,1775335841239,-500.0,0.00013699,2]
[419722332,1775335841253,-500.0,0.00013699,2]
[419722333,1775335841265,-178.83121777,0.00013699,2]
[419722334,1775335841277,-500.0,0.00013699,2]
[419722335,1775335841289,-500.0,0.00013699,2]
[419722336,1775335841302,-500.0,0.00013699,2]
[419722337,1775335841313,-518.91238386,0.00013699,2]
[419722338,1775335841325,-500.0,0.00013699,2]
[419722339,1775335841336,-500.0,0.00013699,2]
[419722340,1775335841349,-500.0,0.00013699,2]
[419722341,1775335841361,-500.0,0.00013699,2]
[419722342,1775335841373,-501.69279177,0.00013699,2]
[419722343,1775335841386,-500.0,0.00013699,2]
[419722344,1775335841397,-500.0,0.00013699,2]
[419722345,1775335841409,-312.69903259,0.00013699,2]
[419722346,1775335841420,-500.0,0.00013699,2]
[419722347,1775335841432,-500.0,0.00013699,2]
[419722348,1775335841444,-343.00680173,0.00013699,2]
[419722349,1775335841455,-500.0,0.00013699,2]
[419722350,1775335841466,-500.0,0.00013699,2]
[419722351,1775335841477,-500.0,0.00013699,2]
[419722352,1775335841488,-500.0,0.00013699,2]
[419722353,1775335841500,-490.65099871,0.00013699,2]
[419722354,1775335841511,-500.0,0.00013699,2]
[419722355,1775335841522,-500.0,0.00013699,2]
[419722356,1775335841533,-201.28,0.00013699,2]
[419722357,1775335841547,-388.62988323,0.00013699,2]
[419722358,1775335841558,-500.0,0.00013699,2]
[419722359,1775335841571,-181.79,0.000137,2]
[419722360,1775335841582,-181.79,0.000137,2]
[419722361,1775335841593,-181.79,0.000137,2]
[419722362,1775335841605,-187.95451372,0.00013946,2]
[419722363,1775335841616,-195.0,0.00013946,2]
[419722364,1775335841627,-195.0,0.00013946,2]
[419722365,1775335841639,-195.0,0.00013946,2]
[419722366,1775335841650,-195.0,0.00013946,2]
[419722367,1775335841661,-2500.0,0.00013946,2]
[419722368,1775335841672,-2500.0,0.00013946,2]
[419722369,1775335841684,-2500.0,0.00013946,2]
[419722370,1775335841695,-2500.0,0.00013946,2]
[419722371,1775335841706,-300.0,0.00013946,2]
[419722372,1775335841717,-195.0,0.00013946,2]
[419722373,1775335841729,-2500.0,0.00013946,2]
[419722374,1775335841740,-530.581,0.00013946,2]
[419722375,1775335841750,-300.0,0.00013946,2]
[419722376,1775335841762,-300.0,0.00013946,2]
[419722377,1775335841773,-300.0,0.00013946,2]
[419722378,1775335841784,-420.33515972,0.00013946,2]
[419722379,1775335841796,-500.0,0.00013946,2]
[419722380,1775335841807,-500.0,0.00013946,2]
[419722381,1775335841819,-500.0,0.00013946,2]
[419722382,1775335841830,-500.0,0.00013946,2]
[419722383,1775335841841,-18992.18007814,0.00013951,2]
[419722384,1775335841856,-23220.59307934,0.00013951,2]
[419722385,1775335841880,-208.16470367,0.00013955,2]
[419722386,1775335841898,-1500.0,0.00013968,2]
[419722387,1775335841909,-1500.0,0.00013968,2]
[419722388,1775335841921,-1500.0,0.00013968,2]
[419722389,1775335841932,-523.47,0.00013972,2]
[419722390,1775335841944,-150.0,0.00013973,2]
[419722391,1775335841955,-150.0,0.00013973,2]
[419722392,1775335841967,-200.506913,0.00014,2]
[419722393,1775335841978,-1807.96907093,0.00014006,2]
[419722394,1775335841990,-1298.88224457,0.00014068,2]
[419722395,1775335842002,-1000.0,0.00014068,2]
[419722396,1775335842015,-1500.0,0.00014068,2]
[419722397,1775335842027,-255.0,0.00014079,2]
[419722398,1775335842039,-722.32,0.00014096,2]
[419722399,1775335842051,-500.0,0.00014096,2]
[419722400,1775335842063,-1680.0,0.00014164,2]
[419722401,1775335842075,-1500.0,0.00014168,2]
[419722402,1775335842088,-1500.0,0.00014168,2]
[419722403,1775335842100,-666.1666,0.00014221,2]
[419722404,1775335842113,-172.661435,0.00014221,2]
[419722405,1775335842123,-688.577778,0.00014221,2]
[419722406,1775335842132,-523.47,0.00014246,2]
[419722407,1775335842142,-500.0,0.00014246,2]
[419722408,1775335842151,-1000.0,0.00014247,2]
[419722409,1775335842161,-500.0,0.00014247,2]
[419722410,1775335842171,-306.90768699,0.00014247,2]
[419722411,1775335842180,-1013.6791618,0.00014247,2]
[419722422,1775335842593,-710.53546823,0.00014247,2]
[419722423,1775335842630,-502.59758452,0.00014247,2]
[419722424,1775335842653,-1000.0,0.00014247,2]
[419722425,1775335842665,-1001.3800559,0.00014247,2]
[419722426,1775335842675,-500.0,0.00014247,2]
[419722427,1775335842684,-1000.0,0.00014247,2]
[419722428,1775335842693,-1001.88837508,0.00014247,2]
[419722429,1775335842702,-501.1834914,0.00014247,2]
[419722430,1775335842713,-419.81066253,0.00014247,2]
[419722431,1775335842725,-503.37341793,0.00014247,2]
[419722432,1775335842734,-1000.0,0.00014247,2]
[419722433,1775335842744,-385.69863661,0.00014247,2]
[419722434,1775335842753,-920.32389809,0.00014247,2]
[419722435,1775335842762,-1000.0,0.00014247,2]
[419722436,1775335842771,-1000.0,0.00014247,2]
[419722437,1775335842780,-1000.0,0.00014247,2]
[419722438,1775335842790,-500.0,0.00014247,2]
[419722439,1775335842799,-1000.0,0.00014247,2]
[419722440,1775335842809,-500.67291823,0.00014247,2]
[419722441,1775335842819,-500.0,0.00014247,2]
[419722442,1775335842828,-1000.0,0.00014247,2]
[419722443,1775335842837,-1000.0,0.00014247,2]
[419722444,1775335842846,-1002.03101859,0.00014247,2]
[419722445,1775335842857,-1000.0,0.00014247,2]
[419722446,1775335842867,-1000.0,0.00014247,2]
[419722447,1775335842877,-1003.0996884,0.00014247,2]
[419722448,1775335842886,-1000.0,0.00014247,2]
[419722449,1775335842896,-1000.0,0.00014247,2]
[419722450,1775335842907,-1000.0,0.00014247,2]
[419722451,1775335842917,-684.40015724,0.00014247,2]
[419722452,1775335842927,-1000.0,0.00014247,2]
[419722453,1775335842938,-502.01968107,0.00014247,2]
[419722454,1775335842947,-1000.0,0.00014247,2]
[419722455,1775335842956,-1000.0,0.00014247,2]
[419722456,1775335842965,-1000.0,0.00014247,2]
[419722457,1775335842974,-1000.0,0.00014247,2]
[419722458,1775335842983,-1000.0,0.00014247,2]
[419722460,1775335842993,-273.02,0.00014247,2]
[419722462,1775335843002,-18992.18007814,0.00014276,2]
[419722463,1775335843012,-23220.59307934,0.00014276,2]
[419722465,1775335843021,-492.61081,0.00014281,2]
[419722466,1775335843031,-523.59171,0.00014281,2]
[419722467,1775335843041,-272.517891,0.00014284,2]
[419722468,1775335843051,-678.444842,0.00014298,2]
[419722469,1775335843060,-223.291395,0.00014309,2]
[419722470,1775335843070,-4900.24,0.00014384,2]
[419722472,1775335843079,-150.0,0.000144,2]
[419722473,1775335843088,-150.0,0.000144,2]
[419722474,1775335843098,-150.0,0.000144,2]
[419722475,1775335843108,-150.0,0.000144,2]
[419722476,1775335843118,-150.0,0.000144,2]
[419722477,1775335843128,-150.0,0.000144,2]
[419722478,1775335843137,-150.0,0.000144,2]
[419722479,1775335843146,-150.0,0.000144,2]
[419722480,1775335843155,-150.0,0.000144,2]
[419722481,1775335843165,-150.0,0.000144,2]
[419722482,1775335843175,-150.0,0.000144,2]
[419722483,1775335843184,-150.0,0.000144,2]
[419722484,1775335843194,-200.67348083,0.000144,2]
[419722485,1775335843204,-150.0,0.000144,2]
[419722486,1775335843213,-150.0,0.000144,2]
[419722487,1775335843223,-2000.0,0.00014401,2]
[419722488,1775335843232,-2000.0,0.00014401,2]
[419722489,1775335843242,-2000.0,0.00014401,2]
[419722490,1775335843251,-2000.0,0.00014401,2]
[419722491,1775335843261,-2000.0,0.00014401,2]
[419722492,1775335843270,-2000.0,0.00014401,2]
[419722493,1775335843280,-2000.0,0.00014401,2]
[419722494,1775335843289,-2000.0,0.00014401,2]
[419722495,1775335843299,-2000.0,0.00014401,2]
[419722496,1775335843308,-2139.0,0.00014401,2]
[419722497,1775335843317,-150.0,0.00014417,2]
[419722498,1775335843327,-150.0,0.00014422,2]
[419722499,1775335843337,-150.0,0.00014422,2]
[419722500,1775335843347,-150.0,0.00014423,2]
[419722501,1775335843356,-150.0,0.00014429,2]
[419722502,1775335843366,-150.0,0.0001443,2]
[419722503,1775335843376,-150.0,0.00014434,2]
[419722504,1775335843385,-156.39703094,0.00014439,2]
[419722505,1775335843395,-150.0,0.00014444,2]
[419722506,1775335843404,-150.0,0.00014444,2]
[419722507,1775335843414,-150.0,0.00014445,2]
[419722508,1775335843423,-150.0,0.00014452,2]
[419722509,1775335843433,-150.0,0.00014453,2]
[419722510,1775335843442,-150.0,0.00014455,2]
[419722511,1775335843452,-150.0,0.00014458,2]
[419722512,1775335843463,-150.0,0.00014459,2]
[419722513,1775335843472,-150.0,0.00014466,2]
[419722514,1775335843481,-150.0,0.00014466,2]
[419722515,1775335843491,-150.0,0.00014468,2]
[419722516,1775335843500,-150.0,0.00014469,2]
[419722517,1775335843510,-1150.0,0.00014474,2]
[419722518,1775335843520,-1150.0,0.00014474,2]
[419722519,1775335843529,-1150.0,0.00014474,2]
[419722520,1775335843539,-1150.0,0.00014474,2]
[419722521,1775335843549,-1150.0,0.00014474,2]
[419722522,1775335843558,-1150.0,0.00014474,2]
[419722523,1775335843567,-1150.0,0.00014474,2]
[419722524,1775335843577,-1150.0,0.00014474,2]
[419722525,1775335843586,-1150.0,0.00014474,2]
[419722526,1775335843595,-846.0,0.00014474,2]
[419722527,1775335843605,-150.0,0.00014486,2]
[419722528,1775335843615,-150.0,0.00014487,2]
[419722529,1775335843625,-150.0,0.00014488,2]
[419722530,1775335843635,-150.0,0.00014488,2]
[419722531,1775335843645,-150.0,0.00014489,2]
[419722532,1775335843654,-150.0,0.0001449,2]
[419722533,1775335843664,-150.0,0.000145,2]
[419722534,1775335843673,-150.0,0.00014503,2]
[419722535,1775335843682,-150.0,0.00014507,2]
[419722536,1775335843692,-150.0,0.0001451,2]
[419722537,1775335843701,-150.0,0.0001451,2]
[419722538,1775335843711,-150.0,0.0001451,2]
[419722539,1775335843721,-1750.0,0.00014511,2]
[419722540,1775335843730,-1750.0,0.00014511,2]
[419722541,1775335843740,-1750.0,0.00014511,2]
[419722542,1775335843749,-1750.0,0.00014511,2]
[419722543,1775335843759,-1750.0,0.00014511,2]
[419722544,1775335843768,-1750.0,0.00014511,2]
[419722545,1775335843778,-1750.0,0.00014511,2]
[419722546,1775335843787,-1750.0,0.00014511,2]
[419722547,1775335843797,-1750.0,0.00014511,2]
[419722548,1775335843806,-1279.0,0.00014511,2]
[419722549,1775335843815,-150.0,0.00014513,2]
[419722550,1775335843824,-150.0,0.00014516,2]
[419722551,1775335843833,-2000.0,0.00014516,2]
[419722552,1775335843843,-339.64282887,0.00014516,2]
[419722553,1775335843853,-2000.0,0.00014516,2]
[419722554,1775335843862,-150.0,0.00014519,2]
[419722555,1775335843872,-523.47,0.0001452,2]
[419722556,1775335843882,-150.0,0.0001452,2]
[419722557,1775335843892,-150.0,0.00014532,2]
[419722558,1775335843902,-150.0,0.00014532,2]
[419722559,1775335843911,-150.0,0.00014535,2]
[419722560,1775335843921,-150.0,0.00014538,2]
[419722561,1775335843930,-150.0,0.00014545,2]
[419722562,1775335843940,-150.0,0.00014548,2]
[419722563,1775335843950,-150.0,0.00014553,2]
[419722564,1775335843960,-150.0,0.00014553,2]
[419722565,1775335843970,-150.0,0.00014555,2]
[419722566,1775335843980,-150.0,0.00014558,2]
[419722567,1775335843989,-150.0,0.0001456,2]
[419722568,1775335843998,-150.0,0.00014566,2]
[419722569,1775335844008,-150.0,0.00014572,2]
[419722570,1775335844018,-150.0,0.00014575,2]
[419722571,1775335844027,-150.0,0.00014575,2]
[419722572,1775335844037,-150.0,0.00014575,2]
[419722573,1775335844047,-310.88901773,0.00014575,2]
[419722574,1775335844056,-150.0,0.00014578,2]
[419722575,1775335844065,-150.0,0.0001458,2]
[419722576,1775335844074,-150.0,0.00014589,2]
[419722577,1775335844083,-396.61291239,0.0001459,2]
[419722578,1775335844092,-184.8,0.0001459,9]
[419722579,1775335844101,-150.0,0.00014597,2]
[419722580,1775335844111,-150.0,0.00014597,2]
[419722581,1775335844120,-150.0,0.000146,2]
[419722582,1775335844129,-150.0,0.000146,2]
[419722583,1775335844139,-18992.18007814,0.00014601,2]
[419722584,1775335844149,-23220.59307934,0.00014601,2]
[419722585,1775335844160,-150.0,0.00014603,2]
[419722586,1775335844170,-150.0,0.00014604,2]
[419722587,1775335844180,-150.0,0.00014606,2]
[419722588,1775335844189,-150.0,0.00014607,2]
[419722589,1775335844199,-150.0,0.00014613,2]
[419722590,1775335844209,-2061.25077082,0.00014616,2]
[419722591,1775335844218,-150.0,0.00014619,2]
[419722592,1775335844229,-150.0,0.00014619,2]
[419722593,1775335844239,-150.0,0.00014621,2]
[419722594,1775335844247,-150.0,0.00014624,2]
[419722595,1775335844257,-150.0,0.00014625,2]
[419722596,1775335844267,-156.19224752,0.00014632,2]
[419722597,1775335844277,-150.0,0.00014633,2]
[419722598,1775335844287,-150.0,0.00014637,2]
[419722599,1775335844298,-150.0,0.00014641,2]
[419722600,1775335844308,-150.0,0.00014641,2]
[419722601,1775335844317,-150.0,0.00014641,2]
[419722602,1775335844326,-150.0,0.00014648,2]
[419722603,1775335844335,-150.0,0.00014658,2]
[419722604,1775335844344,-150.0,0.00014662,2]
[419722605,1775335844354,-150.0,0.00014663,2]
[419722606,1775335844363,-150.0,0.00014663,2]
[419722607,1775335844372,-150.0,0.00014667,2]
[419722608,1775335844381,-150.0,0.00014667,2]
[419722609,1775335844390,-150.0,0.0001467,2]
[419722610,1775335844399,-150.0,0.00014675,2]
[419722611,1775335844409,-150.0,0.00014676,2]